fUST/lending_fUST_20250506
["ID","MTS","AMOUNT","RATE_DAILY","PERIOD"]
[360067355,1746534645546,-400.0,0.00019178,2]
[360067356,1746534645555,-400.0,0.00019178,2]
[360067358,1746534645565,-400.0,0.00019178,2]
[360067361,1746534645574,-455.73,0.00019178,2]
[360067364,1746534645585,-400.0,0.00019178,2]
[360067367,1746534645594,-916.55,0.00019178,2]
[360067369,1746534645603,-400.0,0.00019178,2]
[360067371,1746534645613,-400.0,0.00019178,2]
[360067373,1746534645622,-475.23,0.00019178,2]
[360067375,1746534645631,-400.0,0.00019178,2]
[360067377,1746534645640,-659.17,0.00019178,2]
[360067379,1746534645650,-400.0,0.00019178,2]
[360067381,1746534645659,-412.94,0.00019178,2]
[360067383,1746534645670,-400.0,0.00019178,2]
[360067386,1746534645680,-400.0,0.00019178,2]
[360067389,1746534645689,-400.0,0.00019178,2]
[360067391,1746534645699,-400.0,0.00019178,2]
[360067393,1746534645708,-400.0,0.00019178,2]
[360067395,1746534645718,-404.56256714,0.00019178,2]
[360067398,1746534645727,-403.33,0.00019178,2]
[360067401,1746534645737,-591.3312437,0.00019178,2]
[360067404,1746534645746,-400.0,0.00019178,2]
[360067407,1746534645756,-400.0,0.00019178,2]
[360067410,1746534645765,-400.0,0.00019178,2]
[360067413,1746534645775,-400.0,0.00019178,2]
[360067416,1746534645784,-400.0,0.00019178,2]
[360067417,1746534645794,-400.0,0.00019178,2]
[360067419,1746534645803,-484.03110653,0.00019178,2]
[360067421,1746534645813,-565.62,0.00019178,2]
[360067423,1746534645823,-400.0,0.00019178,2]
[360067425,1746534645832,-402.01282132,0.00019178,2]
[360067426,1746534645841,-400.0,0.00019178,2]
[360067428,1746534645850,-400.0,0.00019178,2]
[360067430,1746534645860,-400.0,0.00019178,2]
[360067432,1746534645869,-400.0,0.00019178,2]
[360067434,1746534645879,-400.0,0.00019178,2]
[360067436,1746534645889,-400.0,0.00019178,2]
[360067438,1746534645899,-400.0,0.00019178,2]
[360067440,1746534645908,-400.0,0.00019178,2]
[360067442,1746534645918,-500.0,0.00019178,2]
[360067444,1746534645928,-500.0,0.00019178,2]
[360067447,1746534645938,-500.0,0.00019178,2]
[360067448,1746534645948,-500.0,0.00019178,2]
[360067450,1746534645957,-413.17676072,0.00019178,2]
[360067452,1746534645967,-208.74870446,0.00019178,2]
[360067454,1746534645975,-400.0,0.00019178,2]
[360067456,1746534645985,-881.87,0.00019178,2]
[360067458,1746534645995,-400.0,0.00019178,2]
[360067460,1746534646005,-400.0,0.00019178,2]
[360067462,1746534646014,-401.22799411,0.00019178,2]
[360067464,1746534646024,-400.0,0.00019178,2]
[360067466,1746534646034,-400.0,0.00019178,2]
[360067468,1746534646044,-1076.0,0.00019178,2]
[360067470,1746534646054,-400.0,0.00019178,2]
[360067472,1746534646064,-400.0,0.00019178,2]
[360067474,1746534646074,-400.0,0.00019178,2]
[360067476,1746534646086,-400.0,0.00019178,2]
[360067478,1746534646095,-400.0,0.00019178,2]
[360067480,1746534646105,-2275.42,0.00019178,2]
[360067482,1746534646114,-400.0,0.00019178,2]
[360067484,1746534646123,-401.39677314,0.00019178,2]
[360067486,1746534646132,-400.0,0.00019178,2]
[360067488,1746534646142,-400.0,0.00019178,2]
[360067490,1746534646151,-400.0,0.00019178,2]
[360067492,1746534646160,-471.21,0.00019178,2]
[360067494,1746534646170,-400.0,0.00019178,2]
[360067496,1746534646180,-400.0,0.00019178,2]
[360067498,1746534646190,-401.69554683,0.00019178,2]
[360067500,1746534646199,-400.0,0.00019178,2]
[360067502,1746534646209,-405.79280735,0.00019178,2]
[360067504,1746534646218,-400.0,0.00019178,2]
[360067506,1746534646228,-400.0,0.00019178,2]
[360067508,1746534646237,-400.0,0.00019178,2]
[360067510,1746534646247,-400.0,0.00019178,2]
[360067512,1746534646257,-1231.09,0.00019178,2]
[360067514,1746534646267,-2351.77,0.00019178,2]
[360067516,1746534646276,-400.0,0.00019178,2]
[360067518,1746534646286,-400.0,0.00019178,2]
[360067520,1746534646296,-2290.01,0.00019178,2]
[360067522,1746534646305,-400.0,0.00019178,2]
[360067524,1746534646315,-400.0,0.00019178,2]
[360067526,1746534646324,-400.0,0.00019178,2]
[360067528,1746534646335,-2013.68,0.00019178,2]
[360067530,1746534646344,-400.0,0.00019178,2]
[360067532,1746534646353,-400.0,0.00019178,2]
[360067534,1746534646363,-400.0,0.00019178,2]
[360067536,1746534646372,-548.25,0.00019178,2]
[360067538,1746534646381,-417.45388257,0.00019178,2]
[360067540,1746534646391,-400.0,0.00019178,2]
[360067542,1746534646400,-400.0,0.00019178,2]
[360067544,1746534646409,-400.0,0.00019178,2]
[360067546,1746534646418,-400.0,0.00019178,2]
[360067548,1746534646429,-400.0,0.00019178,2]
[360067550,1746534646439,-1868.0,0.00019178,2]
[360067552,1746534646448,-400.0,0.00019178,2]
[360067554,1746534646457,-240.93647369,0.00019178,2]
[360067556,1746534646467,-1315.89,0.00019178,2]
[360067558,1746534646477,-400.0,0.00019178,2]
[360067560,1746534646487,-414.38058515,0.00019178,2]
[360067562,1746534646497,-400.0,0.00019178,2]
[360067564,1746534646507,-400.0,0.00019178,2]
[360067566,1746534646518,-400.84686798,0.00019178,2]
[360067568,1746534646528,-378.69198831,0.00019178,2]
[360067570,1746534646538,-704.01,0.00019178,2]
[360067572,1746534646548,-400.0,0.00019178,2]
[360067574,1746534646558,-1674.07,0.00019178,2]
[360067576,1746534646568,-400.0,0.00019178,2]
[360067578,1746534646578,-1000.0,0.00019178,2]
[360067580,1746534646588,-400.0,0.00019178,2]
[360067582,1746534646598,-416.26,0.00019178,2]
[360067584,1746534646608,-1791.53,0.00019178,2]
[360067586,1746534646617,-404.18475722,0.00019178,2]
[360067588,1746534646627,-400.0,0.00019178,2]
[360067590,1746534646636,-679.79,0.00019178,2]
[360067592,1746534646646,-400.0,0.00019178,2]
[360067594,1746534646656,-1380.11,0.00019178,2]
[360067596,1746534646666,-7739.97,0.00019178,2]
[360067598,1746534646676,-216.6160112,0.00019178,2]
[360067600,1746534646685,-400.0,0.00019178,2]
[360067602,1746534646694,-400.0,0.00019178,2]
[360067604,1746534646704,-358.0,0.00019178,2]
[360067606,1746534646714,-640.4,0.00019178,2]
[360067608,1746534646724,-400.0,0.00019178,2]
[360067610,1746534646734,-1932.08,0.00019178,2]
[360067612,1746534646744,-400.0,0.00019178,2]
[360067614,1746534646754,-1250.98,0.00019178,2]
[360067616,1746534646763,-400.0,0.00019178,2]
[360067618,1746534646772,-400.0,0.00019178,2]
[360067620,1746534646782,-785.16,0.00019178,2]
[360067622,1746534646792,-400.0,0.00019178,2]
[360067624,1746534646802,-8985.44,0.00019178,2]
[360067626,1746534646812,-400.0,0.00019178,2]
[360067628,1746534646821,-400.0,0.00019178,2]
[360067630,1746534646830,-997.0,0.00019178,2]
[360067632,1746534646839,-400.0,0.00019178,2]
[360067634,1746534646849,-400.0,0.00019178,2]
[360067636,1746534646858,-400.0,0.00019178,2]
[360067638,1746534646867,-400.0,0.00019178,2]
[360067641,1746534646877,-400.0,0.00019178,2]
[360067643,1746534646886,-389.70227789,0.00019178,2]
[360067645,1746534646895,-400.0,0.00019178,2]
[360067647,1746534646904,-400.0,0.00019178,2]
[360067649,1746534646913,-509.11,0.00019178,2]
[360067651,1746534646923,-401.96524849,0.00019178,2]
[360067652,1746534646932,-1233.44,0.00019178,2]
[360067654,1746534646941,-400.0,0.00019178,2]
[360067657,1746534646951,-1325.51,0.00019178,2]
[360067659,1746534646960,-400.0,0.00019178,2]
[360067661,1746534646969,-400.0,0.00019178,2]
[360067663,1746534646978,-400.0,0.00019178,2]
[360067665,1746534646987,-462.62,0.00019178,2]
[360067667,1746534646996,-410.46,0.00019178,2]
[360067669,1746534647005,-400.0,0.00019178,2]
[360067671,1746534647015,-400.0,0.00019178,2]
[360067673,1746534647024,-404.37927752,0.00019178,2]
[360067675,1746534647033,-400.0,0.00019178,2]
[360067677,1746534647042,-400.0,0.00019178,2]
[360067679,1746534647051,-400.0,0.00019178,2]
[360067681,1746534647060,-828.74,0.00019178,2]
[360067683,1746534647069,-212.45092939,0.00019178,2]
[360067684,1746534647078,-847.24,0.00019178,2]
[360067687,1746534647091,-400.0,0.00019178,2]
[360067688,1746534647100,-400.0,0.00019178,2]
[360067690,1746534647110,-400.0,0.00019178,2]
[360067693,1746534647120,-400.0,0.00019178,2]
[360067695,1746534647130,-400.0,0.00019178,2]
[360067697,1746534647140,-400.0,0.00019178,2]
[360067698,1746534647149,-3603.23,0.00019178,2]
[360067701,1746534647158,-400.0,0.00019178,2]
[360067702,1746534647168,-2359.95,0.00019178,2]
[360067705,1746534647177,-3285.9,0.00019178,2]
[360067707,1746534647187,-400.0,0.00019178,2]
[360067709,1746534647196,-480.27,0.00019178,2]
[360067711,1746534647206,-400.0,0.00019178,2]
[360067713,1746534647215,-485.54,0.00019178,2]
[360067714,1746534647224,-400.0,0.00019178,2]
[360067717,1746534647233,-2613.41,0.00019178,2]
[360067718,1746534647243,-587.93,0.00019178,2]
[360067720,1746534647252,-400.0,0.00019178,2]
[360067723,1746534647262,-527.12,0.00019178,2]
[360067725,1746534647271,-400.0,0.00019178,2]
[360067727,1746534647280,-410.03729739,0.00019178,2]
[360067729,1746534647291,-400.0,0.00019178,2]
[360067731,1746534647300,-400.0,0.00019178,2]
[360067733,1746534647309,-518.15,0.00019178,2]
[360067735,1746534647319,-433.22014427,0.00019178,2]
[360067737,1746534647328,-1199.81,0.00019178,2]
[360067739,1746534647337,-400.0,0.00019178,2]
[360067741,1746534647347,-400.0,0.00019178,2]
[360067743,1746534647356,-400.0,0.00019178,2]
[360067745,1746534647366,-2629.83,0.00019178,2]
[360067747,1746534647375,-400.0,0.00019178,2]
[360067748,1746534647384,-991.85,0.00019178,2]
[360067751,1746534647394,-400.0,0.00019178,2]
[360067752,1746534647405,-17321.17,0.00019178,2]
[360067755,1746534647414,-505.17156563,0.00019178,2]
[360067756,1746534647424,-400.0,0.00019178,2]
[360067759,1746534647434,-400.0,0.00019178,2]
[360067761,1746534647444,-400.0,0.00019178,2]
[360067763,1746534647453,-400.0,0.00019178,2]
[360067765,1746534647462,-400.0,0.00019178,2]
[360067767,1746534647471,-400.0,0.00019178,2]
[360067769,1746534647481,-718.21,0.00019178,2]
[360067771,1746534647490,-7226.3,0.00019178,2]
[360067773,1746534647501,-400.0,0.00019178,2]
[360067774,1746534647511,-400.0,0.00019178,2]
[360067775,1746534647521,-538.81,0.00019178,2]
[360067776,1746534647530,-400.0,0.00019178,2]
[360067777,1746534647539,-787.92,0.00019178,2]
[360067778,1746534647549,-400.0,0.00019178,2]
[360067779,1746534647559,-428.96269452,0.00019178,2]
[360067780,1746534647568,-400.0,0.00019178,2]
[360067781,1746534647577,-202.21434323,0.00019178,2]
[360067782,1746534647587,-2284.77,0.00019178,2]
[360067783,1746534647596,-500.0,0.00019178,2]
[360067784,1746534647605,-1306.81,0.00019178,2]
[360067785,1746534647614,-400.0,0.00019178,2]
[360067786,1746534647623,-4991.11,0.00019178,2]
[360067787,1746534647632,-1548.37,0.00019178,2]
[360067789,1746534647642,-2526.41,0.00019178,2]
[360067791,1746534647651,-400.0,0.00019178,2]
[360067793,1746534647660,-400.0,0.00019178,2]
[360067795,1746534647670,-401.81,0.00019178,2]
[360067797,1746534647679,-400.0,0.00019178,2]
[360067799,1746534647689,-2402.45,0.00019178,2]
[360067801,1746534647698,-1542.1,0.00019178,2]
[360067803,1746534647707,-1893.77,0.00019178,2]
[360067805,1746534647717,-920.3,0.00019178,2]
[360067807,1746534647726,-716.56,0.00019178,2]
[360067809,1746534647735,-3527.44,0.00019178,2]
[360067811,1746534647745,-400.0,0.00019178,2]
[360067813,1746534647754,-400.0,0.00019178,2]
[360067815,1746534647763,-400.0,0.00019178,2]
[360067817,1746534647773,-1366.97,0.00019178,2]
[360067819,1746534647781,-384.36037893,0.00019178,2]
[360067821,1746534647791,-210.67578459,0.00019178,2]
[360067823,1746534647800,-432.39,0.00019178,2]
[360067825,1746534647809,-400.0,0.00019178,2]
[360067827,1746534647819,-1328.28,0.00019178,2]
[360067829,1746534647827,-307.28029054,0.00019178,2]
[360067830,1746534647836,-2897.87,0.00019178,2]
[360067832,1746534647846,-403.29389681,0.00019178,2]
[360067835,1746534647855,-547.45027408,0.00019178,2]
[360067836,1746534647864,-400.0,0.00019178,2]
[360067838,1746534647873,-521.54,0.00019178,2]
[360067840,1746534647882,-561.66,0.00019178,2]
[360067842,1746534647892,-400.17178998,0.00019178,2]
[360067845,1746534647901,-400.0,0.00019178,2]
[360067847,1746534647911,-1979.53,0.00019178,2]
[360067849,1746534647920,-400.0,0.00019178,2]
[360067851,1746534647930,-2364.19,0.00019178,2]
[360067853,1746534647939,-308.389088,0.00019178,2]
[360067855,1746534647948,-546.0,0.00019242,2]
[360067857,1746534647957,-400.0,0.00019452,2]
[360067859,1746534647967,-400.0,0.00019452,2]
[360067861,1746534647976,-400.0,0.00019452,2]
[360067862,1746534647988,-400.0,0.00019452,2]
[360067865,1746534648000,-400.0,0.00019452,2]
[360067867,1746534648009,-400.0,0.00019452,2]
[360067869,1746534648019,-400.0,0.00019452,2]
[360067870,1746534648029,-400.0,0.00019452,2]
[360067872,1746534648039,-514.15,0.00019452,2]
[360067874,1746534648049,-400.0,0.00019452,2]
[360067876,1746534648059,-400.0,0.00019452,2]
[360067878,1746534648068,-386.24297431,0.00019452,2]
[360067880,1746534648078,-400.0,0.00019452,2]
[360067882,1746534648091,-400.0,0.00019452,2]
[360067884,1746534648101,-400.0,0.00019452,2]
[360067886,1746534648110,-400.0,0.00019452,2]
[360067888,1746534648120,-400.0,0.00019452,2]
[360067890,1746534648130,-444.11,0.00019452,2]
[360067892,1746534648139,-400.0,0.00019452,2]
[360067895,1746534648149,-153.88321248,0.00019452,2]
[360067897,1746534648158,-400.0,0.00019452,2]
[360067899,1746534648168,-400.0,0.00019452,2]
[360067900,1746534648178,-726.46,0.00019452,2]
[360067903,1746534648188,-400.0,0.00019452,2]
[360067904,1746534648198,-400.0,0.00019452,2]
[360067906,1746534648207,-400.0,0.00019452,2]
[360067908,1746534648217,-400.0,0.00019452,2]
[360067910,1746534648228,-472.49,0.00019452,2]
[360067912,1746534648239,-400.0,0.00019452,2]
[360067914,1746534648249,-400.0,0.00019452,2]
[360067916,1746534648259,-151.0,0.00019452,2]
[360067918,1746534648269,-400.0,0.00019452,2]
[360067920,1746534648278,-151.0,0.00019452,2]
[360067922,1746534648288,-212.43059048,0.00019452,2]
[360067924,1746534648298,-400.0,0.00019452,2]
[360067926,1746534648308,-400.0,0.00019452,2]
[360067929,1746534648318,-409.87,0.00019452,2]
[360067931,1746534648328,-400.0,0.00019452,2]
[360067947,1746534648462,-151.0,0.00019452,2]
[360067950,1746534648493,-400.0,0.00019452,2]
[360067952,1746534648503,-530.77,0.00019452,2]
[360067954,1746534648512,-2792.33,0.00019452,2]
[360067956,1746534648522,-400.0,0.00019452,2]
[360067958,1746534648532,-400.0,0.00019452,2]
[360067960,1746534648541,-400.0,0.00019452,2]
[360067962,1746534648551,-403.64168324,0.00019452,2]
[360067964,1746534648560,-554.41,0.00019452,2]
[360067966,1746534648570,-400.0,0.00019452,2]
[360067969,1746534648580,-400.0,0.00019452,2]
[360067970,1746534648589,-400.0,0.00019452,2]
[360067973,1746534648600,-400.0,0.00019452,2]
[360067975,1746534648609,-400.0,0.00019452,2]
[360067977,1746534648618,-400.0,0.00019452,2]
[360067978,1746534648628,-433.28797714,0.00019452,2]
[360067980,1746534648637,-400.0,0.00019452,2]
[360067983,1746534648647,-977.32,0.00019452,2]
[360067984,1746534648656,-400.0,0.00019452,2]
[360067986,1746534648666,-151.0,0.00019452,2]
[360067988,1746534648675,-1164.7,0.00019452,2]
[360067990,1746534648685,-400.0,0.00019452,2]
[360067993,1746534648695,-400.0,0.00019452,2]
[360067995,1746534648705,-400.0,0.00019452,2]
[360067997,1746534648715,-151.0,0.00019452,2]
[360067999,1746534648724,-151.0,0.00019452,2]
[360068001,1746534648734,-400.0,0.00019452,2]
[360068003,1746534648743,-151.0,0.00019452,2]
[360068005,1746534648753,-400.0,0.00019452,2]
[360068007,1746534648764,-151.0,0.00019452,2]
[360068009,1746534648773,-151.0,0.00019452,2]
[360068011,1746534648781,-675.21,0.00019452,2]
[360068013,1746534648791,-151.0,0.00019452,2]
[360068014,1746534648800,-400.0,0.00019452,2]
[360068016,1746534648809,-400.0,0.00019452,2]
[360068019,1746534648819,-151.0,0.00019452,2]
[360068020,1746534648829,-559.9,0.00019452,2]
[360068023,1746534648838,-400.0,0.00019452,2]
[360068024,1746534648847,-400.0,0.00019452,2]
[360068026,1746534648857,-400.0,0.00019452,2]
[360068029,1746534648866,-627.39,0.00019452,2]
[360068030,1746534648875,-1209.22,0.00019452,2]
[360068032,1746534648885,-400.0,0.00019452,2]
[360068034,1746534648894,-429.71,0.00019452,2]
[360068036,1746534648904,-400.0,0.00019452,2]
[360068038,1746534648913,-400.0,0.00019452,2]
[360068040,1746534648922,-400.0,0.00019452,2]
[360068042,1746534648933,-401.94674852,0.00019452,2]
[360068045,1746534648943,-400.0,0.00019452,2]
[360068046,1746534648952,-151.0,0.00019452,2]
[360068048,1746534648961,-892.6,0.00019452,2]
[360068050,1746534648970,-400.0,0.00019452,2]
[360068052,1746534648980,-400.0,0.00019452,2]
[360068055,1746534648990,-596.5,0.00019452,2]
[360068056,1746534648998,-400.0,0.00019452,2]
[360068058,1746534649008,-1040.39,0.00019452,2]
[360068061,1746534649018,-4944.62,0.00019452,2]
[360068062,1746534649027,-400.0,0.00019452,2]
[360068065,1746534649037,-151.0,0.00019452,2]
[360068066,1746534649046,-637.35,0.00019452,2]
[360068068,1746534649055,-153.201412,0.00019452,2]
[360068070,1746534649064,-400.0,0.00019452,2]
[360068072,1746534649074,-400.0,0.00019452,2]
[360068074,1746534649085,-151.0,0.00019452,2]
[360068076,1746534649095,-433.90044506,0.00019452,2]
[360068078,1746534649104,-154.30944127,0.00019452,2]
[360068080,1746534649114,-5465.24,0.00019452,2]
[360068082,1746534649123,-400.0,0.00019452,2]
[360068084,1746534649134,-210.824999,0.00019452,2]
[360068086,1746534649143,-210.824999,0.00019452,2]
[360068088,1746534649153,-400.0,0.00019452,2]
[360068090,1746534649163,-151.0,0.00019452,2]
[360068092,1746534649173,-405.42983274,0.00019452,2]
[360068095,1746534649185,-216.02230012,0.00019452,2]
[360068097,1746534649194,-400.0,0.00019452,2]
[360068099,1746534649204,-400.0,0.00019452,2]
[360068101,1746534649213,-151.0,0.00019452,2]
[360068102,1746534649222,-400.0,0.00019452,2]
[360068105,1746534649232,-400.0,0.00019452,2]
[360068107,1746534649242,-400.0,0.00019452,2]
[360068109,1746534649252,-400.0,0.00019452,2]
[360068111,1746534649263,-809.3,0.00019452,2]
[360068113,1746534649273,-662.32,0.00019452,2]
[360068115,1746534649282,-1341.79,0.00019452,2]
[360068117,1746534649292,-914.91,0.00019452,2]
[360068118,1746534649302,-405.2688485,0.00019452,2]
[360068120,1746534649312,-400.0,0.00019452,2]
[360068122,1746534649321,-3173.55,0.00019452,2]
[360068124,1746534649331,-400.0,0.00019452,2]
[360068127,1746534649341,-400.0,0.00019452,2]
[360068128,1746534649351,-151.0,0.00019452,2]
[360068130,1746534649360,-814.81,0.00019452,2]
[360068132,1746534649370,-400.0,0.00019452,2]
[360068134,1746534649379,-400.0,0.00019452,2]
[360068137,1746534649389,-1441.78,0.00019452,2]
[360068138,1746534649398,-400.0,0.00019452,2]
[360068140,1746534649408,-152.667299,0.00019452,2]
[360068143,1746534649418,-400.0,0.00019452,2]
[360068145,1746534649429,-151.0,0.00019452,2]
[360068147,1746534649438,-400.0,0.00019452,2]
[360068149,1746534649447,-400.0,0.00019452,2]
[360068151,1746534649456,-400.0,0.00019452,2]
[360068153,1746534649465,-778.74,0.00019452,2]
[360068155,1746534649475,-400.0,0.00019452,2]
[360068156,1746534649483,-924.25,0.00019452,2]
[360068159,1746534649492,-400.0,0.00019452,2]
[360068161,1746534649502,-224.52175853,0.00019452,2]
[360068162,1746534649511,-151.0,0.00019452,2]
[360068164,1746534649520,-534.50074591,0.00019452,2]
[360068166,1746534649529,-400.0,0.00019452,2]
[360068169,1746534649538,-400.0,0.00019452,2]
[360068170,1746534649547,-1348.29,0.00019452,2]
[360068172,1746534649556,-810.32,0.00019452,2]
[360068174,1746534649565,-400.0,0.00019452,2]
[360068176,1746534649574,-400.0,0.00019452,2]
[360068178,1746534649584,-422.07,0.00019452,2]
[360068180,1746534649593,-400.0,0.00019452,2]
[360068183,1746534649603,-400.0,0.00019452,2]
[360068185,1746534649612,-480.72,0.00019452,2]
[360068187,1746534649621,-400.0,0.00019452,2]
[360068189,1746534649631,-400.0,0.00019452,2]
[360068191,1746534649639,-1648.19,0.00019452,2]
[360068192,1746534649649,-400.0,0.00019452,2]
[360068195,1746534649658,-400.0,0.00019452,2]
[360068196,1746534649667,-400.0,0.00019452,2]
[360068198,1746534649676,-400.0,0.00019452,2]
[360068200,1746534649685,-400.0,0.00019452,2]
[360068202,1746534649694,-1205.93,0.00019452,2]
[360068204,1746534649703,-400.0,0.00019452,2]
[360068206,1746534649711,-400.0,0.00019452,2]
[360068208,1746534649720,-400.0,0.00019452,2]
[360068210,1746534649730,-455.73,0.00019452,2]
[360068213,1746534649741,-400.0,0.00019452,2]
[360068215,1746534649750,-916.55,0.00019452,2]
[360068216,1746534649759,-400.0,0.00019452,2]
[360068218,1746534649768,-400.0,0.00019452,2]
[360068220,1746534649778,-475.23,0.00019452,2]
[360068222,1746534649787,-151.0,0.00019452,2]
[360068224,1746534649796,-400.0,0.00019452,2]
[360068226,1746534649805,-659.17,0.00019452,2]
[360068228,1746534649814,-400.0,0.00019452,2]
[360068230,1746534649823,-151.0,0.00019452,2]
[360068232,1746534649832,-412.94,0.00019452,2]
[360068234,1746534649842,-400.0,0.00019452,2]
[360068237,1746534649851,-405.48311805,0.00019452,2]
[360068239,1746534649861,-400.0,0.00019452,2]
[360068241,1746534649870,-400.0,0.00019452,2]
[360068243,1746534649879,-400.0,0.00019452,2]
[360068244,1746534649888,-403.33,0.00019452,2]
[360068247,1746534649899,-400.0,0.00019452,2]
[360068248,1746534649909,-400.0,0.00019452,2]
[360068250,1746534649919,-151.0,0.00019452,2]
[360068252,1746534649930,-400.0,0.00019452,2]
[360068255,1746534649940,-400.0,0.00019452,2]
[360068257,1746534649948,-400.0,0.00019452,2]
[360068259,1746534649958,-507.8850277,0.00019452,2]
[360068261,1746534649968,-565.62,0.00019452,2]
[360068263,1746534649977,-407.80801258,0.00019452,2]
[360068265,1746534649986,-400.0,0.00019452,2]
[360068267,1746534649996,-400.0,0.00019452,2]
[360068269,1746534650005,-400.0,0.00019452,2]
[360068271,1746534650014,-401.8274264,0.00019452,2]
[360068273,1746534650024,-151.0,0.00019452,2]
[360068275,1746534650033,-187.962784,0.00019452,2]
[360068277,1746534650042,-530.06790024,0.00019452,2]
[360068279,1746534650052,-400.0,0.00019452,2]
[360068281,1746534650061,-400.0,0.00019452,2]
[360068283,1746534650071,-400.0,0.00019452,2]
[360068285,1746534650080,-400.0,0.00019452,2]
[360068287,1746534650093,-881.87,0.00019452,2]
[360068289,1746534650103,-400.0,0.00019452,2]
[360068291,1746534650112,-400.0,0.00019452,2]
[360068293,1746534650122,-400.0,0.00019452,2]
[360068295,1746534650131,-1076.0,0.00019452,2]
[360068297,1746534650141,-610.074772,0.00019452,2]
[360068299,1746534650150,-151.0,0.00019452,2]
[360068301,1746534650160,-151.0,0.00019452,2]
[360068303,1746534650169,-400.0,0.00019452,2]
[360068305,1746534650182,-400.0,0.00019452,2]
[360068307,1746534650191,-400.0,0.00019452,2]
[360068309,1746534650200,-610.074772,0.00019452,2]
[360068311,1746534650210,-400.0,0.00019452,2]
[360068313,1746534650220,-400.0,0.00019452,2]
[360068315,1746534650229,-2275.42,0.00019452,2]
[360068317,1746534650238,-400.0,0.00019452,2]
[360068319,1746534650248,-402.00725954,0.00019452,2]
[360068321,1746534650258,-189.25111779,0.00019452,2]
[360068322,1746534650267,-400.0,0.00019452,2]
[360068323,1746534650276,-151.0,0.00019452,2]
[360068324,1746534650285,-471.21,0.00019452,2]
[360068325,1746534650294,-400.0,0.00019452,2]
[360068326,1746534650303,-400.0,0.00019452,2]
[360068327,1746534650312,-153.247129,0.00019452,2]
[360068328,1746534650322,-400.0,0.00019452,2]
[360068329,1746534650331,-400.0,0.00019452,2]
[360068330,1746534650341,-400.0,0.00019452,2]
[360068331,1746534650351,-151.0,0.00019452,2]
[360068332,1746534650360,-193.0,0.00019452,2]
[360068333,1746534650368,-400.0,0.00019452,2]
[360068335,1746534650378,-400.0,0.00019452,2]
[360068337,1746534650387,-1231.09,0.00019452,2]
[360068339,1746534650397,-2351.77,0.00019452,2]
[360068341,1746534650406,-151.0,0.00019452,2]
[360068343,1746534650416,-400.0,0.00019452,2]
[360068345,1746534650425,-400.0,0.00019452,2]
[360068347,1746534650434,-2290.01,0.00019452,2]
[360068349,1746534650444,-414.59395073,0.00019452,2]
[360068351,1746534650453,-400.0,0.00019452,2]
[360068353,1746534650462,-151.0,0.00019452,2]